bitfinex/quotes_ETHUSD_20241106
["timestamp","ask_amount","ask_price","bid_price","bid_amount"]
[1730859058560,0.05959803,2491.4,2491.3,4.01395]
[1730859058859,8.0262,2491.9,2491.3,4.01395]
[1730859059020,8.0262,2491.9,2491.3,5.47737842]
[1730859059228,0.05943434,2491.8,2491.3,9.49125842]
[1730859059429,0.05943434,2491.8,2491.3,5.47730842]
[1730859059629,0.05943434,2491.8,2491.4,5.53158728]
[1730859059860,0.05943434,2491.8,2491.4,5.53158048]
[1730859060058,4.01292,2492.0,2491.4,5.53158048]
[1730859060360,0.05941832,2491.7,2491.4,5.45131454]
[1730859060525,4.01292,2492.0,2491.4,5.45131454]
[1730859060730,4.013,2491.9,2491.4,1.43765454]
[1730859060927,4.07250904,2491.9,2491.4,0.8201]
[1730859061168,8.08559904,2491.9,2491.4,0.8201]
[1730859061348,4.07250904,2491.9,2491.4,0.8201]
[1730859061551,0.05950904,2491.9,2491.4,1.88293001]
[1730859061983,4.01303,2491.9,2491.4,0.8201]
[1730859062273,4.07276619,2491.8,2491.2,6.61442009]
[1730859062473,4.07276619,2491.8,2491.2,0.8201]
[1730859062686,4.78422,2491.7,2490.9,10.62894009]
[1730859062967,4.01348,2491.6,2491.0,4.01442]
[1730859063179,0.83035432,2491.7,2491.1,4.01414]
[1730859063381,0.05949639,2491.5,2491.2,4.01411]
[1730859063580,0.05949203,2491.6,2491.1,4.01414]
[1730859063740,0.05937595,2491.4,2491.1,5.07699601]
[1730859063933,0.05942046,2491.5,2491.1,5.07699601]
[1730859064140,4.78374,2492.0,2491.4,4.01371]
[1730859064337,4.01301,2491.9,2491.5,0.8201]
[1730859064832,0.7808,2492.0,2491.0,0.8201]
[1730859065043,0.7808,2492.0,2490.6,5.79432009]
[1730859065044,4.01405,2491.3,2490.8,0.8201]
[1730859065376,4.01341,2491.7,2490.9,9.80884009]
[1730859065587,4.01341,2491.7,2491.1,4.01417]
[1730859065787,4.01341,2491.7,2491.2,0.8201]
[1730859066293,4.01341,2491.7,2491.2,4.83422]
[1730859066455,0.7708,2491.8,2491.4,4.0137]
[1730859066797,0.7708,2492.0,2491.4,4.898482]
[1730859066988,4.01302,2491.9,2491.4,4.0137]
[1730859067156,0.7708,2492.0,2491.5,4.01356]
[1730859068182,0.7708,2492.0,2491.2,6.61442009]
[1730859068373,4.01282,2492.1,2491.6,4.01346]
[1730859068572,0.7708,2492.2,2491.6,4.01346]
[1730859069074,4.78333,2492.2,2491.7,0.8201]
[1730859069602,0.7708,2492.2,2491.7,8.8465]
[1730859069825,0.7708,2492.2,2491.7,4.8333]
[1730859070361,0.05194576,2492.1,2491.7,4.8333]
[1730859071104,5.24949834,2492.1,2491.4,0.8201]
[1730859071287,0.05194576,2492.1,2491.8,4.01303]
[1730859071493,0.05194576,2492.1,2491.6,4.01333]
[1730859071671,3.0,2492.2,2491.7,4.01321]
[1730859071877,0.05203005,2492.1,2491.7,4.01321]
[1730859072076,4.01246,2492.3,2491.7,4.01321]
[1730859072273,0.05198555,2492.0,2491.8,4.01305]
[1730859072484,3.0,2492.3,2491.9,0.8201]
[1730859072686,0.05207454,2492.2,2491.9,0.8201]
[1730859073017,2.09965343,2492.9,2492.4,4.01207]
[1730859073191,4.78211,2493.0,2492.4,4.83217]
[1730859073501,4.78951331,2492.9,2492.4,4.83217]
[1730859073702,4.01165,2492.8,2492.4,0.8201]
[1730859073886,4.01165,2492.8,2492.2,4.01238]
[1730859074409,0.7708,2492.8,2492.1,0.8201]
[1730859074591,4.01252,2492.2,2491.8,0.8201]
[1730859074763,4.01252,2492.2,2491.7,4.01322]
[1730859074963,0.7708,2492.3,2491.7,4.01322]
[1730859075269,0.7708,2492.3,2491.0,5.73705011]
[1730859075270,0.7708,2492.3,2491.0,0.8201]
[1730859075577,4.78399,2491.8,2491.3,4.01396]
[1730859076362,0.7708,2491.8,2491.3,4.01396]
[1730859077368,4.01302,2491.9,2491.4,0.8201]
[1730859077908,0.7708,2492.2,2491.4,0.8201]
[1730859078092,0.7708,2492.2,2491.6,4.01348]
[1730859078301,0.7708,2492.2,2491.6,1.0630674]
[1730859078469,0.7708,2492.5,2492.0,4.01272]
[1730859078913,2.09936413,2492.6,2492.4,4.83227]
[1730859079377,2.09936413,2492.5,2492.4,4.83227]
[1730859079793,0.7708,2492.8,2492.4,4.83227]
[1730859080007,4.01133,2493.0,2492.4,4.83227]
[1730859080193,4.01183,2492.7,2492.1,0.8201]
[1730859080512,4.02094,2493.2,2491.9,4.83309]
[1730859080513,4.01212,2492.5,2491.9,4.83309]
[1730859080948,0.04440323,2492.4,2491.9,0.8201]
[1730859081242,8.06903323,2492.4,2491.8,4.01312]
[1730859082132,0.04440323,2492.4,2491.9,0.8201]
[1730859082350,0.04440323,2492.4,2492.2,4.01251]
[1730859082547,3.0,2492.8,2492.4,4.01218]
[1730859082831,6.88173978,2493.1,2492.5,4.01194]
[1730859083039,4.78192,2493.1,2492.5,4.01194]
[1730859083524,0.7708,2493.1,2492.4,5.38042858]
[1730859083828,4.01133,2493.0,2492.4,5.38042858]
[1730859084032,4.01133,2493.0,2492.4,9.39251858]
[1730859084233,2.09981978,2493.2,2492.8,4.01143]
[1730859084537,2.09981978,2493.2,2492.9,0.8201]
[1730859084838,2.09981978,2493.3,2492.9,0.8201]
[1730859085022,2.78794576,2493.3,2492.9,0.8201]
[1730859085219,2.09981978,2493.3,2492.9,0.8201]
[1730859085425,0.04198321,2493.2,2493.0,4.01122]
[1730859085594,0.04198321,2493.2,2492.9,0.8201]
[1730859085800,4.78141,2493.4,2492.9,0.8201]
[1730859086018,0.04193876,2493.1,2492.9,0.8201]
[1730859086221,5.960568,2493.4,2492.9,0.8201]
[1730859086400,0.0418943,2493.0,2492.9,0.8201]
[1730859086719,0.0418943,2493.0,2492.6,4.83187]
[1730859086918,4.01077,2493.3,2492.6,4.83187]
[1730859087133,0.04058292,2492.9,2492.7,4.01158]
[1730859087336,4.78141,2493.4,2492.6,4.83187]
[1730859087539,0.7708,2493.6,2492.7,0.67336343]
[1730859087836,0.03926561,2493.3,2493.1,4.01106]
[1730859088015,4.01046,2493.5,2492.9,4.01129]
[1730859088211,4.01046,2493.5,2492.8,0.8201]
[1730859088434,4.82723,2493.3,2492.8,0.8201]
[1730859088634,0.8164,2493.3,2492.9,4.01138]
[1730859088847,0.03817235,2493.2,2493.1,4.01107]
[1730859089004,0.03817235,2493.2,2493.0,4.01122]
[1730859089204,3.8164,2493.6,2493.0,4.494252]
[1730859089406,4.0106,2493.4,2492.8,4.83157]
[1730859089907,4.0106,2493.4,2492.8,0.8201]
[1730859090107,4.01091,2493.2,2492.6,4.01179]
[1730859090328,4.01091,2493.2,2492.6,5.63038]
[1730859090541,8.02193,2493.2,2492.6,5.63038]
[1730859090708,4.01091,2493.2,2492.7,4.01167]
[1730859090917,4.01091,2493.2,2492.6,8.83976]
[1730859091113,0.0219476,2493.7,2493.2,4.01084]
[1730859091346,0.0219476,2493.7,2493.4,4.01056]
[1730859091651,0.0219476,2493.7,2493.6,5.37646]
[1730859091807,0.0219476,2493.7,2493.6,6.902878]
[1730859092128,0.0219476,2493.7,2493.6,44.98306721]
[1730859092306,0.0219476,2493.7,2493.6,44.902878]
[1730859092510,0.0219476,2493.7,2493.6,9.902878]
[1730859093324,4.16532596,2494.5,2493.6,5.892618]
[1730859093506,4.16532596,2494.5,2494.4,6.613294]
[1730859094107,4.16532596,2494.5,2494.1,6.613294]
[1730859094510,4.00902,2494.4,2493.8,10.623154]
[1730859095019,4.00866,2494.6,2493.8,10.623154]
[1730859095020,4.00866,2494.6,2494.1,5.797094]
[1730859095225,0.8164,2494.8,2494.4,5.797094]
[1730859095407,0.0619753,2494.9,2494.7,5.797094]
[1730859095605,0.0619753,2494.9,2494.8,4.82453]
[1730859096052,0.0619753,2494.9,2494.8,0.8162]
[1730859096209,0.0619753,2494.9,2494.8,5.8867144]
[1730859096806,0.0619753,2494.9,2494.8,1.8783844]
[1730859097333,0.0619753,2494.9,2494.8,5.8867144]
[1730859097537,0.0619753,2494.9,2494.8,1.8783844]
[1730859097853,0.0619753,2494.9,2494.8,5.8867144]
[1730859098552,0.0619753,2494.9,2494.8,1.8783844]
[1730859098753,0.0619753,2494.9,2494.8,0.8162]
[1730859099564,0.0619753,2494.9,2494.1,3.01]
[1730859099565,4.82475,2494.8,2493.8,0.8162]
[1730859099710,3.48867253,2494.7,2493.8,6.69348722]
[1730859099911,0.8164,2494.8,2494.1,4.00934]
[1730859100311,0.8164,2494.8,2494.3,4.00913]
[1730859100543,0.0619753,2494.9,2494.3,4.00913]
[1730859100544,0.0619753,2494.9,2494.4,4.00886]
[1730859100749,0.0619753,2494.9,2494.8,4.00833]
[1730859100907,2.08746621,2495.6,2494.8,0.8963588]
[1730859101111,2.08746621,2495.6,2495.5,4.00721]
[1730859102451,2.08746621,2495.6,2495.4,10.620554]
[1730859102452,2.08746621,2495.6,2495.4,0.8162]
[1730859103229,2.85736621,2495.6,2494.7,0.8179]
[1730859103467,3.0,2495.5,2494.5,6.598893]
[1730859103768,0.7699,2495.4,2494.5,9.805774]
[1730859104121,0.7699,2495.4,2494.6,4.00862]
[1730859104723,0.7699,2495.4,2494.7,4.00839]
[1730859104948,0.7699,2495.4,2494.9,4.00804]
[1730859105169,2.85736621,2495.6,2495.1,8.0155]
[1730859105474,0.7699,2495.6,2495.1,4.00775]
[1730859105830,0.7699,2496.0,2495.3,4.00751]
[1730859106052,0.7699,2496.0,2495.4,4.00735]
[1730859106540,0.7699,2496.0,2495.3,4.00751]
[1730859107047,0.7699,2496.0,2495.4,4.00735]
[1730859108053,0.7699,2496.0,2495.4,1.6995304]
[1730859108378,0.0619753,2496.2,2496.1,4.00624]
[1730859108526,0.0619753,2496.2,2496.1,9.803334]
[1730859109154,0.0719753,2497.4,2496.1,6.357094]
[1730859109155,0.7699,2497.3,2496.1,6.357094]
[1730859109357,0.7699,2497.3,2497.0,5.797094]
[1730859109634,0.7699,2497.3,2496.5,4.00553]
[1730859109827,0.7699,2497.3,2496.6,4.00541]
[1730859110264,0.7699,2497.3,2496.5,4.00547]
[1730859110626,0.7699,2497.3,2496.7,4.00518]
[1730859110831,0.7699,2497.3,2496.5,4.00554]
[1730859111027,4.77436,2497.3,2496.5,4.00558]
[1730859111254,0.48363353,2497.2,2496.6,4.00541]
[1730859111450,0.7699,2497.3,2496.6,4.00541]
[1730859112170,0.7699,2497.3,2496.5,4.00558]
[1730859112733,0.7699,2497.3,2496.5,0.8179]
[1730859112928,0.7699,2497.3,2496.5,4.82338]
[1730859113443,0.0619753,2497.4,2497.3,4.00432]
[1730859113645,0.0619753,2497.4,2497.2,9.801574]
[1730859113977,0.0619753,2497.4,2497.3,4.00432]
[1730859114534,0.0619753,2497.4,2497.3,4.9516266]
[1730859114731,6.604389,2498.8,2497.3,4.9516266]
[1730859114732,0.7699,2498.3,2497.3,5.39528611]
[1730859114936,0.7699,2498.6,2497.8,9.800554]
[1730859115376,0.7699,2498.6,2497.9,4.00325]
[1730859115535,0.7699,2498.6,2498.0,4.00319]
[1730859115732,0.7699,2498.6,2497.8,5.797094]
[1730859115733,0.7699,2498.6,2497.8,9.800474]
[1730859115932,0.7699,2498.6,2497.5,5.797094]
[1730859115933,0.7699,2498.5,2497.5,5.797094]
[1730859116174,4.00272,2498.3,2497.5,5.797094]
[1730859116347,3.0,2498.2,2497.5,5.797094]
[1730859116979,4.00289,2498.2,2497.5,5.797094]
[1730859117478,0.0123151,2498.2,2497.6,4.00378]
[1730859117639,0.0123151,2498.2,2497.4,4.00406]
[1730859117843,0.76163171,2498.2,2497.4,4.00406]
[1730859118075,0.76163171,2498.2,2497.4,8.00811]
[1730859118281,0.76163171,2498.2,2497.5,4.00398]
[1730859118643,0.76163171,2498.2,2497.7,4.00358]
[1730859118863,0.0123151,2498.2,2497.7,4.00358]
[1730859119065,0.0123151,2498.2,2497.8,4.0034]
[1730859119268,0.0123151,2498.2,2498.1,4.00304]
[1730859120487,0.0677124,2499.2,2498.7,4.00207]
[1730859120646,0.0677124,2499.2,2498.8,4.00178]
[1730859120846,0.0677124,2499.2,2498.9,4.00173]
[1730859121080,0.0677124,2499.2,2499.1,4.00144]
[1730859121284,0.0677124,2499.2,2499.1,5.95940688]
[1730859121454,0.0677124,2499.2,2499.1,5.94940688]
[1730859121857,0.0677124,2499.2,2499.1,8.96940688]
[1730859122097,0.7633,2500.5,2499.9,3.99799855]
[1730859122375,0.0677124,2500.6,2500.1,3.99981]
[1730859122836,0.0677124,2500.6,2500.2,3.99963]
[1730859123131,0.0677124,2500.6,2500.1,3.99981]
[1730859123132,0.0677124,2500.6,2500.1,7.99953]
[1730859123328,0.0677124,2500.6,2500.2,3.99964]
[1730859123481,3.99953,2500.3,2499.5,11.36242766]
[1730859123817,0.399953,2500.2,2499.5,10.56682766]
[1730859124177,3.99953,2500.3,2499.7,4.00047]
[1730859124620,3.99926,2500.5,2499.5,10.56676766]
[1730859124817,3.99953,2500.3,2499.4,4.00092]
[1730859125017,1.163253,2500.2,2499.5,4.00066]
[1730859125229,3.99924,2500.5,2499.7,4.00032]
[1730859125531,0.0677124,2500.6,2499.8,8.00036]
[1730859125749,0.0677124,2500.6,2499.9,11.36180766]
[1730859125914,3.99932,2500.5,2499.9,6.56607766]
[1730859126237,3.99932,2500.5,2499.5,11.36244766]
[1730859126640,3.99939,2500.4,2499.6,4.08061213]
[1730859126849,0.55070564,2500.6,2499.6,4.08061213]
[1730859127002,0.55070564,2500.6,2500.1,3.99979]
[1730859127003,0.0677124,2500.6,2500.1,3.99979]
[1730859127433,0.0677124,2500.6,2500.4,3.99933]
[1730859127619,0.0677124,2500.6,2500.2,0.7956]
[1730859127820,0.0677124,2500.6,2500.0,3.99987]
[1730859128137,0.0677124,2500.6,2499.9,7.36167766]
[1730859128336,3.99948,2500.4,2499.6,4.79616]
[1730859128844,0.7633,2500.5,2499.6,0.7956]
[1730859128845,3.99962,2500.3,2499.6,0.7956]
[1730859129202,3.99962,2500.3,2499.3,0.7956]
[1730859129545,3.99962,2500.3,2499.3,1.99212545]
[1730859129546,3.89986,2500.1,2499.3,1.99212545]
[1730859129702,4.0002,2499.9,2499.1,6.56607766]
[1730859129909,7.89982,2500.1,2499.1,6.56607766]
[1730859130116,7.89982,2500.1,2499.1,10.56744766]
[1730859130117,4.00011,2500.0,2499.1,10.56744766]
[1730859130417,0.399962,2500.2,2499.2,1.53645577]
[1730859130418,4.00017,2499.9,2499.2,1.53645577]
[1730859130737,4.00065,2499.6,2499.0,0.7956]
[1730859130937,4.00058,2499.7,2499.0,0.7956]
[1730859131114,4.00058,2499.7,2499.1,0.479729]
[1730859131315,4.00058,2499.7,2499.0,0.7956]
[1730859131520,4.00123,2499.3,2498.7,0.7956]
[1730859131716,4.00144,2499.1,2498.4,0.7956]
[1730859132104,4.00163,2499.0,2498.5,0.73616777]
[1730859132509,4.00186,2498.9,2498.0,4.79874]
[1730859132745,4.00208,2498.7,2498.0,4.79874]
[1730859133170,4.00208,2498.7,2498.0,0.7956]
[1730859133464,7.77811,2499.5,2498.4,0.7956]
[1730859133614,7.77811,2499.5,2498.9,6.56607766]
[1730859133615,3.7772,2499.5,2498.9,6.56607766]
[1730859133814,4.00048,2499.7,2498.9,6.56607766]
[1730859134015,8.00111,2499.7,2498.9,6.56607766]
[1730859134247,0.7633,2500.0,2499.0,1.05678677]
[1730859134248,4.00094,2499.5,2499.0,1.05678677]
[1730859134421,4.00113,2499.3,2498.5,11.30552543]
[1730859134851,4.00021,2499.9,2498.5,7.30324543]
[1730859134852,4.0016,2499.0,2498.5,7.30324543]
[1730859135156,8.00332,2499.0,2498.5,7.30324543]
[1730859135355,0.7633,2499.3,2498.1,4.00297]
[1730859135356,4.00217,2498.7,2498.1,7.36167766]
[1730859135518,4.00193,2498.8,2498.2,0.08004652]
[1730859135868,4.00219,2498.7,2498.1,7.36167766]
[1730859136151,4.00225,2498.6,2498.1,8.89849043]
[1730859136358,4.0024,2498.5,2498.1,1.53681277]
[1730859136563,4.00266,2498.4,2497.7,11.36528766]
[1730859136919,4.00274,2498.3,2497.7,7.36167766]
[1730859137231,4.0029,2498.2,2497.7,7.36167766]
[1730859137575,0.7633,2498.6,2497.3,4.00429]
[1730859137576,4.00305,2498.1,2497.3,11.36596766]
[1730859137716,4.00256,2498.4,2497.3,7.36167766]
[1730859137917,4.00311,2498.1,2497.3,11.36593766]
[1730859138226,4.00322,2498.0,2497.3,11.36593766]
[1730859138565,4.00243,2498.5,2497.4,1.13659377]
[1730859138566,4.0037,2497.7,2497.4,1.13659377]
[1730859138863,4.0037,2497.7,2496.9,4.00489]
[1730859138864,8.0075,2497.7,2497.0,4.80038]
[1730859139152,4.0037,2497.7,2497.1,1.53713477]
[1730859139326,0.7633,2497.9,2497.1,1.53713477]
[1730859139327,4.00386,2497.6,2497.1,1.53713477]
[1730859139533,4.00383,2497.7,2497.1,1.53713477]
[1730859139724,4.00383,2497.7,2497.2,0.23327348]
[1730859140569,4.0038,2497.7,2497.2,0.23327348]
[1730859141437,4.00375,2497.7,2497.2,0.23327348]
[1730859141747,4.00386,2497.6,2497.2,0.23327348]
[1730859141982,4.00386,2497.6,2497.0,0.7956]
[1730859142462,4.00375,2497.7,2497.1,0.08008546]
[1730859142751,4.00375,2497.7,2497.1,4.00454]
[1730859142961,4.00385,2497.6,2497.0,0.7956]
[1730859143266,4.00385,2497.6,2497.1,1.13664977]
[1730859143472,0.7633,2497.9,2497.1,1.13664977]
[1730859143473,4.00428,2497.4,2497.1,1.13664977]
[1730859143629,4.00428,2497.4,2496.7,0.7956]
[1730859143630,3.16893952,2497.2,2496.7,0.7956]
[1730859144378,4.76673,2497.9,2496.1,0.01]
[1730859144379,4.00514,2496.8,2496.1,11.36778766]
[1730859144533,0.7633,2497.3,2496.1,0.7956]
[1730859144534,4.00562,2496.5,2496.1,0.7956]
[1730859144730,4.00577,2496.4,2495.9,4.00647]
[1730859145233,0.7633,2496.7,2495.8,0.7956]
[1730859145449,4.00672,2495.9,2495.4,0.7956]
[1730859145780,4.00672,2495.9,2495.1,4.8710924]
[1730859145933,4.00707,2495.6,2495.2,0.40754924]
[1730859146131,0.7633,2496.1,2495.1,0.0677124]
[1730859146132,0.7633,2495.3,2495.1,0.0677124]
[1730859146333,4.00769,2495.2,2495.1,0.0677124]
[1730859146571,0.7633,2495.3,2495.1,0.0677124]
[1730859147175,4.77088,2495.3,2495.1,0.0677124]
[1730859147470,4.00769,2495.2,2495.1,0.0677124]
[1730859148682,5.28628,2495.2,2495.1,0.0677124]
[1730859149493,4.00769,2495.2,2495.1,0.0677124]
[1730859149990,7.01769,2495.2,2495.1,0.0677124]
[1730859150154,7.02769,2495.2,2495.1,0.0677124]
[1730859150980,7.02769,2495.2,2493.8,0.8633124]
[1730859150981,4.00911,2494.4,2493.8,4.8732424]
[1730859151158,8.01755,2494.6,2493.9,4.00967]
[1730859151362,4.00874,2494.6,2493.9,4.00967]
[1730859151793,3.0,2495.1,2494.0,0.49531763]
[1730859151956,4.00788,2495.1,2494.5,4.0088]
[1730859152551,8.01587,2495.1,2494.3,8.0181]
[1730859152881,4.0082,2494.9,2494.4,0.80181]
[1730859153060,4.0082,2494.9,2494.3,4.00902]
[1730859153257,8.0165,2494.9,2494.3,4.00902]
[1730859153583,8.01586,2495.1,2494.3,4.00901]
[1730859153883,4.0085,2494.7,2494.1,4.00939]
[1730859154264,4.00819,2494.9,2494.1,4.08952236]
[1730859154775,4.00819,2494.9,2494.3,4.00902]
[1730859154975,8.77852,2495.3,2494.5,4.00879]
[1730859155179,4.00788,2495.1,2494.5,4.77689]
[1730859155495,4.00788,2495.1,2494.6,0.477689]
[1730859155919,4.77086,2495.3,2494.6,0.477689]
[1730859155920,4.77086,2495.3,2494.6,4.486339]
[1730859156094,4.00785,2495.1,2494.6,0.477689]
[1730859156428,4.00813,2495.0,2494.5,0.7681]
[1730859156923,4.00785,2495.1,2494.3,4.00914]
[1730859157090,4.00785,2495.1,2494.4,4.00898]
[1730859157291,4.00827,2494.9,2494.5,0.4089152]
[1730859157511,4.00791,2495.1,2494.5,0.4089152]
[1730859157716,0.7633,2495.3,2494.5,0.4089152]
[1730859158030,0.7633,2495.3,2494.4,35.0]
[1730859158031,4.00795,2495.1,2494.6,2.48381188]
[1730859158388,4.00803,2495.0,2494.6,2.48381188]
[1730859158783,4.00803,2495.0,2494.4,39.00886]
[1730859159031,4.00795,2495.1,2494.5,4.0088]
[1730859159235,0.7789,2495.6,2494.9,4.00816]
[1730859159446,3.0,2495.9,2495.2,4.00759]
[1730859159447,7.78548,2495.9,2495.2,4.00759]
[1730859159728,0.7789,2496.3,2495.3,0.48091059]
[1730859159929,4.78487,2496.3,2495.7,4.00684]
[1730859160430,4.78487,2496.3,2495.4,0.7681]
[1730859160431,0.7789,2496.3,2495.8,0.400684]
[1730859160722,0.7789,2496.3,2495.5,4.00709]
[1730859160723,4.00634,2496.1,2495.5,4.00709]
[1730859160918,4.00634,2496.1,2495.6,2.49196808]
[1730859161489,4.00634,2496.1,2495.5,4.00709]
[1730859161885,4.78491,2496.3,2495.6,4.00704]
[1730859162323,4.00627,2496.1,2495.4,8.78263]
[1730859162484,4.00627,2496.1,2495.5,0.878263]
[1730859162835,4.00627,2496.1,2495.5,4.885363]
[1730859163211,4.00644,2496.0,2495.5,0.878263]
[1730859163427,0.7789,2496.3,2495.0,35.0]
[1730859163428,4.00683,2495.8,2495.0,4.79103]
[1730859163739,4.83044,2495.6,2494.9,4.00816]
[1730859164331,4.83044,2495.6,2495.1,4.0077]
[1730859164332,0.8233,2495.6,2495.1,4.0077]
[1730859164533,0.8233,2495.6,2495.2,0.40077]
[1730859165431,4.00681,2495.8,2495.2,0.40077]
[1730859165741,4.82995,2495.9,2494.8,6.56607766]
[1730859166045,4.00746,2495.4,2494.7,4.7915]
[1730859166336,4.0068,2495.8,2494.9,4.00806]
[1730859166537,4.0068,2495.8,2495.1,4.00773]
[1730859167084,4.0068,2495.8,2495.1,8.01549]
[1730859167211,0.8233,2495.9,2495.4,4.00735]
[1730859167415,7.82948,2496.2,2495.4,4.81686604]
[1730859167616,4.82948,2496.2,2495.5,4.00712]
[1730859167929,4.00626,2496.1,2495.4,5.59996604]
[1730859168342,4.00626,2496.1,2495.5,0.5599966]
[1730859168655,4.00698,2495.7,2495.1,0.7831]
[1730859168829,4.00698,2495.7,2495.1,1.262197]
[1730859169147,4.00675,2495.8,2495.2,4.00763]
[1730859169509,4.00675,2495.8,2495.2,4.08778038]
[1730859169737,4.00675,2495.8,2495.2,4.00763]
[1730859171014,4.82942,2496.2,2495.5,4.0072]
[1730859171220,3.0,2496.4,2495.7,4.78989]
[1730859171221,4.00586,2496.4,2495.7,4.78989]
[1730859171749,4.00554,2496.6,2495.8,4.00662]
[1730859171750,4.00561,2496.5,2495.8,4.00662]
[1730859172259,4.00528,2496.7,2495.8,0.919723]
[1730859172455,4.00626,2496.1,2495.6,0.40072]
[1730859172816,4.00626,2496.1,2495.4,0.7831]
[1730859173045,4.00626,2496.1,2495.4,6.29344654]
[1730859173312,4.00626,2496.1,2495.5,4.37443577]
[1730859173542,4.00626,2496.1,2495.6,0.36733577]
[1730859173740,4.00626,2496.1,2495.7,0.36733577]
[1730859173946,4.00624,2496.1,2495.1,1.262197]
[1730859174147,4.00624,2496.1,2495.4,4.00728]
[1730859174352,8.01259,2496.1,2495.5,0.36794199]
[1730859174595,4.00624,2496.1,2495.4,4.00728]
[1730859174853,8.01264,2496.1,2495.5,0.36847096]
[1730859175057,8.01264,2496.1,2495.4,4.808768]
[1730859175058,4.00643,2496.0,2495.4,4.808768]
[1730859175259,4.00666,2495.9,2495.5,0.3687761]
[1730859175417,4.00666,2495.9,2495.6,0.3687761]
[1730859175617,4.00666,2495.9,2495.4,0.801488]
[1730859175829,4.00666,2495.9,2495.5,0.368792]
[1730859176026,4.00666,2495.9,2495.6,0.368792]
[1730859176226,4.00666,2495.9,2495.4,0.801488]
[1730859176536,4.00705,2495.6,2495.5,0.36880534]
[1730859176736,4.00705,2495.6,2495.1,0.7831]
[1730859176962,4.00737,2495.4,2495.2,0.36889577]
[1730859177129,4.00737,2495.4,2494.8,6.17082179]
[1730859177331,4.00721,2495.5,2494.9,0.36901827]
[1730859177533,0.8233,2495.6,2495.0,0.36901827]
[1730859177715,4.00634,2496.1,2495.2,0.7831]
[1730859177919,4.00634,2496.1,2495.5,4.00719]
[1730859178234,4.80769,2496.5,2495.8,4.75961]
[1730859178463,4.80769,2496.5,2495.9,0.36901827]
[1730859178464,0.802,2496.5,2495.9,0.36901827]
[1730859178749,4.00538,2496.7,2496.1,8.0123]
[1730859178750,4.00529,2496.7,2496.1,8.0123]
[1730859178971,4.0056,2496.5,2495.8,0.753]
[1730859179272,8.01077,2496.7,2496.0,4.0064]
[1730859179481,4.00506,2496.9,2496.2,4.00607]
[1730859179772,4.405545,2496.9,2496.3,0.36837986]
[1730859179949,4.405545,2496.9,2496.2,4.00607]
[1730859180148,4.405545,2496.9,2496.3,0.3683819]
[1730859180346,4.00529,2496.7,2496.1,0.448235]
[1730859180552,4.00529,2496.7,2496.2,0.36856145]
[1730859180876,4.00529,2496.7,2496.0,4.48232]
[1730859181074,4.00529,2496.7,2496.1,0.36858315]
[1730859181373,4.00529,2496.7,2495.9,35.0]
[1730859181374,4.00561,2496.5,2495.8,4.7596]
[1730859181557,4.00561,2496.5,2495.8,5.23556]
[1730859181767,4.0061,2496.2,2495.9,0.36870391]
[1730859182148,4.00579,2496.4,2496.0,0.36881346]
[1730859182456,4.00579,2496.4,2495.8,4.75962]
[1730859182632,4.00579,2496.4,2495.9,0.36872877]
[1730859182835,4.80751,2496.6,2496.0,0.36872877]
[1730859183580,4.00522,2496.8,2496.1,4.37496877]
[1730859183780,4.00522,2496.8,2496.2,4.37479877]
[1730859184071,4.00545,2496.6,2496.3,0.36876738]
[1730859184248,4.00563,2496.5,2495.9,4.55656]
[1730859184446,4.00545,2496.6,2496.0,4.37521922]
[1730859184770,8.01103,2496.6,2496.0,4.0064]
[1730859185074,4.00573,2496.5,2496.1,0.36893041]
[1730859185277,4.00573,2496.5,2495.9,0.931614]
[1730859185484,4.00587,2496.4,2495.9,0.931614]
[1730859185651,4.00587,2496.4,2496.0,0.36900177]
[1730859185868,0.802,2496.9,2496.1,0.36896491]
[1730859186203,4.00635,2496.1,2495.8,0.753]
[1730859186354,4.00635,2496.1,2495.9,0.36907193]
[1730859186554,4.00635,2496.1,2496.0,0.36907193]
[1730859187492,4.00657,2495.9,2495.5,0.753]
[1730859187696,4.00633,2496.1,2495.6,0.36916471]
[1730859187897,4.00633,2496.1,2495.4,4.00726]
[1730859188081,4.00659,2495.9,2495.5,0.36925086]
[1730859188280,4.00659,2495.9,2495.2,4.76054]
[1730859188281,4.00659,2495.9,2495.2,4.84068482]
[1730859188486,4.00659,2495.9,2495.6,0.36944513]
[1730859188688,8.01267,2496.1,2495.4,4.00727]
[1730859188998,4.00593,2496.3,2495.8,4.7597]
[1730859189156,4.00572,2496.5,2495.9,0.36950819]
[1730859189357,4.00518,2496.8,2496.1,4.00624]
[1730859189565,4.00518,2496.8,2496.0,0.36950819]
[1730859189566,4.00531,2496.7,2496.2,0.36950819]
[1730859189786,8.01042,2496.8,2496.3,0.36950819]
[1730859189956,4.00546,2496.6,2496.0,4.00627]
[1730859190161,4.00546,2496.6,2496.1,0.36947748]
[1730859190400,4.00546,2496.6,2496.2,0.36947748]
[1730859190706,4.00546,2496.6,2496.3,0.36947748]
[1730859190888,4.00546,2496.6,2496.0,4.53348908]
[1730859191102,4.00522,2496.8,2496.1,0.87406551]
[1730859191400,4.00522,2496.8,2496.2,0.36942452]
[1730859191401,4.00537,2496.7,2496.2,0.36942452]
[1730859191606,4.00557,2496.6,2496.3,0.36942452]
[1730859191807,4.00557,2496.6,2495.4,7.82144446]
[1730859191808,4.00619,2496.2,2495.5,4.00711]
[1730859191963,4.00619,2496.2,2495.6,0.36954033]
[1730859192161,5.208277,2496.5,2495.8,4.00663]
[1730859192470,4.00601,2496.3,2495.6,4.00695]
[1730859192780,4.00611,2496.2,2495.7,0.36947437]
[1730859192976,4.00611,2496.2,2495.4,4.76027]
[1730859193199,4.00618,2496.2,2495.5,0.36952781]
[1730859193415,8.01178,2496.4,2495.5,4.00721]